fUSD/lending_fUSD_20240927
["ID","MTS","AMOUNT","RATE_DAILY","PERIOD"]
[339307975,1727443862185,-500.0,0.00011885,2]
[339307976,1727443862194,-997.18,0.00011885,2]
[339307977,1727443862203,-997.18,0.00011885,2]
[339307978,1727443862212,-500.0,0.00011885,2]
[339307979,1727443862221,-997.18,0.00011885,2]
[339307980,1727443862231,-500.0,0.00011885,2]
[339307981,1727443862240,-500.0,0.00011885,2]
[339307982,1727443862249,-500.0,0.00011885,2]
[339307983,1727443862261,-500.0,0.00011885,2]
[339307984,1727443862270,-997.18,0.00011885,2]
[339307985,1727443862279,-500.0,0.00011885,2]
[339307986,1727443862289,-500.0,0.00011885,2]
[339307987,1727443862298,-500.0,0.00011885,2]
[339307988,1727443862307,-997.18,0.00011885,2]
[339307989,1727443862317,-659.49,0.00011885,2]
[339307990,1727443862326,-659.49,0.00011885,2]
[339307991,1727443862335,-659.49,0.00011885,2]
[339307992,1727443862344,-659.49,0.00011885,2]
[339307993,1727443862353,-500.0,0.00011885,2]
[339307994,1727443862363,-500.0,0.00011885,2]
[339307995,1727443862372,-521.41,0.00011885,2]
[339307996,1727443862381,-500.0,0.00011885,2]
[339307997,1727443862391,-521.41,0.00011885,2]
[339307998,1727443862400,-500.0,0.00011885,2]
[339307999,1727443862409,-500.0,0.00011885,2]
[339308000,1727443862419,-521.41,0.00011885,2]
[339308001,1727443862428,-500.0,0.00011885,2]
[339308002,1727443862437,-500.0,0.00011885,2]
[339308003,1727443862446,-521.41,0.00011885,2]
[339308004,1727443862456,-500.0,0.00011885,2]
[339308005,1727443862466,-521.41,0.00011885,2]
[339308006,1727443862475,-500.0,0.00011885,2]
[339308007,1727443862484,-608.36,0.00011885,2]
[339308008,1727443862493,-608.36,0.00011885,2]
[339308009,1727443862502,-500.0,0.00011885,2]
[339308010,1727443862518,-204.15491473,0.00011885,2]
[339308011,1727443862584,-295.84508527,0.00011885,2]
[339308012,1727443862594,-500.0,0.00011885,2]
[339308013,1727443862604,-500.0,0.00011885,2]
[339308014,1727443862613,-500.0,0.00011885,2]
[339308015,1727443862623,-500.0,0.00011885,2]
[339308016,1727443862633,-500.0,0.00011885,2]
[339308017,1727443862642,-500.0,0.00011885,2]
[339308018,1727443862651,-500.0,0.00011885,2]
[339308019,1727443862661,-501.40363546,0.00011885,2]
[339308020,1727443862670,-500.0,0.00011885,2]
[339308021,1727443862680,-500.0,0.00011885,2]
[339308022,1727443862690,-1972.27,0.00011885,2]
[339308023,1727443862700,-1554.11411077,0.00011885,2]
[339308024,1727443863549,-202.5316843,0.00011803,2]
[339308025,1727443863558,-500.0,0.00011882,2]
[339308026,1727443863568,-500.0,0.00011882,2]
[339308027,1727443863577,-500.0,0.00011882,2]
[339308028,1727443863587,-500.0,0.00011882,2]
[339308029,1727443863596,-500.0,0.00011882,2]
[339308030,1727443863607,-500.0,0.00011882,2]
[339308031,1727443863617,-500.0,0.00011882,2]
[339308032,1727443863627,-500.0,0.00011884,2]
[339308033,1727443863637,-418.15588923,0.00011885,2]
[339308034,1727443863647,-1972.27,0.00011885,2]
[339308035,1727443863657,-1972.27,0.00011885,2]
[339308036,1727443863667,-1972.27,0.00011885,2]
[339308037,1727443863679,-549.16,0.00011885,2]
[339308038,1727443863690,-500.0,0.00011885,2]
[339308039,1727443863700,-460.569615,0.00011885,2]
[339308042,1727443915502,320.27,8.976e-05,2]
[339308043,1727443980114,190.64,0.00010894,2]
[339308044,1727444000147,500.0,0.00010806,2]
[339308045,1727444000586,500.0,0.00010807,2]
[339308046,1727444049625,250.0,0.00010919,2]
[339308047,1727444056690,200.0,0.00010919,2]
[339308048,1727444178667,4000.0,0.00011,2]
[339308049,1727444276515,-506.53581364,0.000156,30]
[339308050,1727444276539,-521.95478343,0.000156,30]
[339308051,1727444276569,-569.07911433,0.000156,30]
[339308052,1727444276592,-342.10843723,0.000156,30]
[339308053,1727444276616,-532.50229631,0.000156,30]
[339308054,1727444276641,-150.0,0.00015698,120]
[339308055,1727444276665,-150.0,0.00015699,120]
[339308056,1727444276689,-150.0,0.00015869,120]
[339308057,1727444276712,-597.45639439,0.00015974,120]
[339308058,1727444276736,-943.0,0.00015974,120]
[339308059,1727444276760,-1023.97774936,0.00015974,120]
[339308060,1727444276787,-150.0,0.0001699,120]
[339308061,1727444276819,-150.0,0.00017278,120]
[339308062,1727444276845,-150.0,0.00017773,120]
[339308063,1727444276872,-150.0,0.00018786,120]
[339308064,1727444276896,-150.0,0.00019596,120]
[339308065,1727444276920,-2000.0,0.00019874,31]
[339308066,1727444276947,-1520.35674309,0.0002,30]
[339308067,1727444276970,-2110.0,0.0002,30]
[339308068,1727444276994,-160.0,0.0002,35]
[339308069,1727444277017,-300.0,0.0002,120]
[339308070,1727444277049,-150.0,0.00020315,120]
[339308071,1727444277073,-2110.0,0.000205,30]
[339308072,1727444277097,-2110.0,0.00021,30]
[339308073,1727444277121,-20000.0,0.00021,60]
[339308074,1727444277145,-300.0,0.00021,120]
[339308075,1727444277170,-201.602083,0.00021007,120]
[339308076,1727444277194,-150.0,0.00021185,120]
[339308077,1727444277219,-150.0,0.00021452,120]
[339308078,1727444277243,-2110.0,0.000215,30]
[339308079,1727444277267,-150.0,0.00021624,120]
[339308080,1727444277291,-150.0,0.00021706,120]
[339308081,1727444277317,-748.89,0.00021917,30]
[339308082,1727444277340,-748.89,0.00021917,30]
[339308083,1727444277364,-748.89,0.00021917,30]
[339308084,1727444277387,-748.89,0.00021917,30]
[339308085,1727444277410,-748.89,0.00021917,30]
[339308086,1727444277433,-748.89,0.00021917,30]
[339308087,1727444277457,-748.89,0.00021917,30]
[339308088,1727444277480,-748.89,0.00021917,30]
[339308089,1727444277504,-748.89,0.00021917,30]
[339308090,1727444277528,-748.89,0.00021917,30]
[339308091,1727444277555,-748.89,0.00021917,30]
[339308092,1727444277578,-748.89,0.00021917,30]
[339308093,1727444277601,-748.89,0.00021917,30]
[339308094,1727444277626,-748.89,0.00021917,30]
[339308095,1727444277893,-748.89,0.00021917,30]
[339308096,1727444277917,-748.89,0.00021917,30]
[339308097,1727444277940,-748.89,0.00021917,30]
[339308098,1727444277964,-748.89,0.00021917,30]
[339308099,1727444277987,-748.89,0.00021917,30]
[339308100,1727444278012,-748.89,0.00021917,30]
[339308101,1727444278034,-748.89,0.00021917,30]
[339308102,1727444278062,-748.89,0.00021917,30]
[339308103,1727444278086,-748.89,0.00021917,30]
[339308104,1727444278109,-749.0906114,0.00021917,30]
[339308105,1727444278137,-718.96940737,0.00022,30]
[339308106,1727444278161,-2110.0,0.00022,30]
[339308107,1727444278184,-200.0,0.00022,120]
[339308108,1727444278208,-585.890789,0.00022007,120]
[339308109,1727444278233,-150.0,0.00022122,120]
[339308110,1727444278256,-150.0,0.00022158,120]
[339308111,1727444278279,-2110.0,0.000225,30]
[339308112,1727444278305,-2000.0,0.00022507,120]
[339308113,1727444278328,-1803.43609765,0.00023,120]
[339308114,1727444278350,-1000.0,0.00023,120]
[339308115,1727444278373,-2110.0,0.00023,30]
[339308116,1727444278397,-403.046968,0.00023007,120]
[339308117,1727444278420,-905.0,0.00023288,60]
[339308118,1727444278444,-150.0,0.0002348,120]
[339308119,1727444278466,-2110.0,0.000235,30]
[339308120,1727444278490,-1033.344429,0.00023507,120]
[339308121,1727444278514,-150.0,0.00023708,120]
[339308122,1727444278538,-900.0,0.00024,30]
[339308123,1727444278562,-2416.49438555,0.00024,30]
[339308124,1727444278585,-2000.0,0.00024,120]
[339308125,1727444278609,-1000.0,0.00024,120]
[339308126,1727444278632,-2110.0,0.00024,30]
[339308127,1727444278654,-2889.13945789,0.00024142,40]
[339308128,1727444278677,-2110.0,0.000245,30]
[339308129,1727444278702,-2000.0,0.00024942,31]
[339308130,1727444278726,-1010.08800375,0.00025,60]
[339308131,1727444278748,-2339.07002144,0.00025,30]
[339308132,1727444278770,-1000.0,0.00025,60]
[339308133,1727444278792,-1500.0,0.00025,120]
[339308134,1727444278818,-2100.0,0.00025,30]
[339308135,1727444278841,-150.79199229,0.00025,120]
[339308136,1727444278866,-633.26185357,0.00025,120]
[339308137,1727444278888,-1346.02894931,0.00025,60]
[339308138,1727444278910,-1000.0,0.00025,120]
[339308139,1727444278932,-2110.0,0.00025,30]
[339308140,1727444278955,-263.38287613,0.00025,30]
[339308141,1727444278979,-200.0,0.00025,120]
[339308142,1727444279003,-2809.60214282,0.0002509,120]
[339308143,1727444279026,-2110.0,0.000255,30]
[339308144,1727444279052,-435.650232,0.00025507,120]
[339308145,1727444279077,-150.0,0.00025784,120]
[339308146,1727444279100,-150.0,0.00025913,120]
[339308147,1727444279122,-1000.0,0.00026,120]
[339308148,1727444279144,-2110.0,0.00026,30]
[339308149,1727444279168,-698.89223006,0.00026,60]
[339308150,1727444279190,-1000.0,0.00026027,120]
[339308151,1727444279213,-422.17110236,0.000264,120]
[339308152,1727444279236,-150.0,0.0002645,120]
[339308153,1727444279260,-1699.31,0.000265,30]
[339308154,1727444279284,-150.0,0.00026855,120]
[339308155,1727444279307,-150.0,0.00026894,120]
[339308156,1727444279333,-645.86,0.00027,120]
[339308157,1727444279356,-2629.71201044,0.00027,120]
[339308158,1727444279379,-1007.96839811,0.00027,120]
[339308159,1727444279403,-668.82454122,0.00027,120]
[339308160,1727444279425,-504.11560528,0.00027,120]
[339308161,1727444279448,-2000.0,0.00027,120]
[339308162,1727444279471,-225.21857874,0.00027,120]
[339308163,1727444279495,-1000.0,0.00027,120]
[339308164,1727444279518,-200.0,0.00027,120]
[339308165,1727444279542,-180.0,0.00027,120]
[339308166,1727444279568,-679.18763319,0.00027,120]
[339308167,1727444279593,-185.91148,0.00027,120]
[339308168,1727444279618,-150.0,0.00027,120]
[339308169,1727444279642,-150.0,0.00027,120]
[339308170,1727444279667,-1963.10800895,0.0002736,120]
[339308171,1727444279692,-2000.0,0.00027397,30]
[339308172,1727444279716,-2000.0,0.00027397,30]
[339308173,1727444279740,-2000.0,0.00027397,30]
[339308174,1727444279763,-2000.0,0.00027397,30]
[339308175,1727444279786,-2000.0,0.00027397,30]
[339308176,1727444279811,-2000.0,0.00027397,30]
[339308177,1727444279834,-2000.0,0.00027397,30]
[339308178,1727444279860,-2000.0,0.00027397,30]
[339308179,1727444279883,-2000.0,0.00027397,30]
[339308180,1727444279906,-2000.0,0.00027397,30]
[339308181,1727444279928,-2000.0,0.00027397,30]
[339308182,1727444279951,-2000.0,0.00027397,30]
[339308183,1727444279976,-2000.0,0.00027397,30]
[339308184,1727444279999,-2000.0,0.00027397,30]
[339308185,1727444280023,-2000.0,0.00027397,30]
[339308186,1727444280047,-2000.0,0.00027397,30]
[339308187,1727444280072,-2000.0,0.00027397,30]
[339308188,1727444280097,-2000.0,0.00027397,30]
[339308189,1727444280122,-2000.0,0.00027397,30]
[339308190,1727444280147,-1006.35762215,0.00027397,30]
[339308191,1727444280173,-200.0,0.00027397,60]
[339308192,1727444280198,-1000.0,0.00027397,32]
[339308193,1727444280224,-178.07,0.000274,30]
[339308194,1727444280249,-178.07,0.000274,30]
[339308195,1727444280272,-178.07,0.000274,30]
[339308196,1727444280298,-2212.13957548,0.00027945,60]
[339308197,1727444280321,-150.0,0.00027959,120]
[339308198,1727444280345,-1000.0,0.00028,120]
[339308199,1727444280548,-150.0,0.00028,120]
[339308200,1727444280572,-151.0,0.00028,120]
[339308201,1727444280596,-150.0,0.00028,120]
[339308202,1727444280619,-888.6430456,0.00028,120]
[339308203,1727444280642,-900.0,0.00028,30]
[339308204,1727444280666,-150.0,0.0002822,120]
[339308205,1727444280689,-1401.84268928,0.00028297,120]
[339308206,1727444280713,-200.0,0.000287,120]
[339308207,1727444280737,-180.0,0.000287,120]
[339308208,1727444280762,-150.0,0.00028903,120]
[339308209,1727444280786,-3028.98906191,0.00028977,35]
[339308210,1727444280810,-707.01708062,0.00028977,35]
[339308211,1727444280834,-261.96640547,0.00028977,35]
[339308212,1727444280861,-413.67927933,0.00028986,60]
[339308213,1727444280886,-900.0,0.00029,30]
[339308214,1727444280908,-1526.6981209,0.00029,30]
[339308215,1727444280933,-463.0,0.00029,120]
[339308216,1727444280957,-270.7557,0.00029,120]
[339308217,1727444280982,-2200.0,0.00029478,31]
[339308218,1727444281007,-10198.0,0.000295,30]
[339308219,1727444281031,-150.06288614,0.00029639,120]
[339308220,1727444281060,-150.0,0.00029818,120]
[339308221,1727444281086,-150.0,0.00029892,120]
[339308222,1727444281114,-151.0,0.0003,120]
[339308223,1727444281140,-151.0,0.0003,120]
[339308224,1727444281164,-458.31467279,0.0003,120]
[339308225,1727444281187,-500.0,0.0003,120]
[339308226,1727444281210,-1000.0,0.0003,30]
[339308227,1727444281235,-620.0,0.0003,30]
[339308228,1727444281258,-1954.26492776,0.0003,120]
[339308229,1727444281281,-2016.61351903,0.0003,120]
[339308230,1727444281314,-5000.0,0.0003,60]
[339308231,1727444281339,-1000.0,0.0003,120]
[339308232,1727444281363,-900.0,0.0003,31]
[339308233,1727444281387,-151.21209473,0.0003,120]
[339308234,1727444281412,-1003.23,0.0003,120]
[339308235,1727444281439,-217.52893616,0.0003,120]
[339308236,1727444281464,-1408.1667714,0.0003,120]
[339308237,1727444281492,-1200.0,0.0003,120]
[339308238,1727444281517,-800.0,0.0003,120]
[339308239,1727444281542,-370.94088,0.0003,120]
[339308240,1727444281575,-1535.0,0.0003,120]
[339308241,1727444281602,-232.25,0.0003,120]
[339308242,1727444281627,-200.0,0.0003,120]
[339308243,1727444281652,-5222.5272533,0.0003,120]
[339308244,1727444281677,-851.63338246,0.0003,30]
[339308245,1727444281703,-40000.0,0.0003,45]
[339308246,1727444281727,-1116.0,0.0003,120]
[339308247,1727444281751,-1518.43008237,0.0003,120]
[339308248,1727444281778,-13796.8897937,0.0003,120]
[339308249,1727444281805,-3011.4148664,0.0003,120]
[339308250,1727444281831,-1069.33376455,0.0003,30]
[339308251,1727444281858,-650.00882838,0.0003,30]
[339308252,1727444281884,-5070.0,0.0003,60]
[339308253,1727444281911,-4182.84582197,0.0003,30]
[339308254,1727444281938,-2499.999999,0.00030066,90]
[339308255,1727444281964,-200.0,0.00030137,60]
[339308256,1727444281991,-150.0,0.00030164,120]
[339308257,1727444282049,-200.0,0.000304,120]
[339308258,1727444282075,-180.0,0.000304,120]
[339308259,1727444282101,-1478.76089967,0.000305,120]
[339308260,1727444282129,-548.0,0.00030613,30]
[339308261,1727444282155,-250.0,0.000308,30]
[339308262,1727444282180,-150.0,0.00030883,120]
[339308263,1727444282205,-2253.83751437,0.000309,90]
[339308264,1727444282230,-151.0,0.00030959,120]
[339308265,1727444282255,-1000.0,0.00031,30]
[339308266,1727444282280,-1000.0,0.00031,120]
[339308267,1727444282305,-183.61,0.00031,90]
[339308268,1727444282329,-1000.91140475,0.00031,30]
[339308269,1727444282352,-900.0,0.00031,32]
[339308270,1727444282375,-5313.69415865,0.00031,120]
[339308271,1727444282398,-3891.11010054,0.00031,120]
[339308272,1727444282421,-21060.79896803,0.00031291,120]
[339308273,1727444282446,-150.0,0.00031585,120]
[339308274,1727444282470,-174.04,0.00031644,91]
[339308275,1727444282493,-151.0,0.00031918,120]
[339308276,1727444282516,-1000.0,0.00032,30]
[339308277,1727444282539,-1000.0,0.00032,120]
[339308278,1727444282564,-900.0,0.00032,33]
[339308279,1727444282587,-10000.0,0.00032,32]
[339308280,1727444282610,-4000.0,0.00032,120]
[339308281,1727444282633,-5000.0,0.00032,30]
[339308282,1727444282658,-5585.82069739,0.00032603,60]
[339308283,1727444282681,-1061.35708948,0.00032603,60]
[339308284,1727444282703,-505.1660186,0.00032876,120]
[339308285,1727444282727,-999.0,0.00032876,120]
[339308286,1727444282750,-200.0,0.00032877,60]
[339308287,1727444282773,-1000.0,0.00032877,34]
[339308288,1727444282796,-151.0,0.00032877,120]
[339308289,1727444282820,-429.29,0.00032877,30]
[339308290,1727444285089,800.0,0.00032877,120]
[339308291,1727444294779,5005.20701,0.00018,30]
[339308292,1727444298044,999.0,0.00032876,120]
[339308293,1727444302031,-1001.57237309,0.00030291,120]
[339308294,1727444302056,-160.0,0.00030291,30]
[339308295,1727444302084,-1445.29136404,0.00030291,30]
[339308296,1727444302107,-1000.0,0.00030291,30]
[339308297,1727444302133,-1000.0,0.00030291,30]
[339308298,1727444302156,-1000.0,0.00030291,30]
[339308299,1727444302179,-1000.0,0.00030291,30]
[339308300,1727444302203,-1000.0,0.00030291,30]
[339308301,1727444302226,-1000.0,0.00030291,30]
[339308302,1727444302248,-807.12977558,0.00030291,30]
[339308303,1727444302272,-1000.0,0.00030291,30]
[339308304,1727444302295,-1000.0,0.00030291,30]
[339308305,1727444302322,-1000.0,0.00030291,30]
[339308306,1727444302346,-1000.0,0.00030291,30]
[339308307,1727444302368,-406.5397121,0.00030291,30]
[339308308,1727444302391,-194.0,0.00030291,30]
[339308309,1727444302414,-194.0,0.00030291,30]
[339308310,1727444302437,-194.0,0.00030291,30]
[339308311,1727444302460,-200.0,0.00030291,30]
[339308312,1727444302483,-188.0,0.00030291,30]
[339308313,1727444302507,-200.0,0.00030291,30]
[339308314,1727444302532,-188.0,0.00030291,30]
[339308315,1727444302557,-647.0,0.00030291,30]
[339308316,1727444302583,-647.0,0.00030291,30]
[339308317,1727444302607,-1710.50851914,0.00030291,120]
[339308318,1727444302632,-490.74480747,0.00030291,30]
[339308319,1727444302656,-172.72466268,0.00030291,30]
[339308320,1727444302679,-366.77063252,0.00030291,30]
[339308321,1727444302701,-532.55208558,0.00030291,60]
[339308322,1727444302725,-2170.4565356,0.00030291,120]
[339308323,1727444302749,-841.34463816,0.00030291,30]
[339308324,1727444302773,-1000.0,0.00030291,30]
[339308325,1727444302796,-1049.70821838,0.00030291,120]
[339308326,1727444302822,-1932.25409404,0.00030291,30]
[339308327,1727444302845,-709.97203713,0.00030291,30]
[339308328,1727444302874,-197.00994752,0.00030291,60]
[339308329,1727444302897,-1953.9455671,0.00030291,120]
[339308330,1727444302924,-1522.49403097,0.00030291,120]
[339308331,1727444302949,-254.68438809,0.00030291,30]
[339308332,1727444302972,-2761.0,0.00030291,120]
[339308333,1727444302995,-352.01789308,0.00030291,120]
[339308334,1727444303260,-724.14542887,0.00030291,120]
[339308335,1727444303284,-824.10646955,0.00030291,30]
[339308336,1727444303309,-1200.0,0.00030291,120]
[339308337,1727444303335,-831.98869195,0.00030291,30]
[339308338,1727444303359,-529.89867732,0.00030291,35]
[339308339,1727444303381,-246.17950054,0.00030291,120]
[339308340,1727444303407,-260.23267738,0.00030291,120]
[339308341,1727444303430,-896.1704787,0.00030291,30]
[339308342,1727444303454,-483.30480133,0.00030291,120]
[339308343,1727444303478,-747.72121186,0.00030291,31]
[339308344,1727444303502,-200.58130536,0.00030291,30]
[339308345,1727444303527,-925.82313603,0.00030291,30]
[339308346,1727444303551,-969.97411635,0.00030291,120]
[339308347,1727444303580,-199.15670183,0.00030291,120]
[339308348,1727444303604,-1803.87266602,0.00030291,120]
[339308349,1727444303627,-223.41812247,0.00030291,30]
[339308350,1727444303651,-953.19539092,0.00030291,120]
[339308351,1727444303674,-804.63276243,0.00030291,120]
[339308352,1727444303700,-338.3854765,0.00030291,30]
[339308353,1727444303724,-1410.69109567,0.00030291,120]
[339308354,1727444303747,-209.71056284,0.00030291,120]
[339308355,1727444303771,-899.83613739,0.00030291,120]
[339308356,1727444303794,-1166.58539517,0.00030291,120]
[339308357,1727444303820,-1800.98495499,0.00030291,120]
[339308358,1727444303843,-320.83850883,0.00030291,120]
[339308359,1727444303870,-1723.75976049,0.00030291,120]
[339308360,1727444303893,-232.18793369,0.00030291,31]
[339308361,1727444303916,-288.09608133,0.00030291,120]
[339308362,1727444303939,-1034.44265077,0.00030291,120]
[339308363,1727444303962,-336.07522368,0.00030291,120]
[339308364,1727444303985,-1658.16464774,0.00030291,120]
[339308365,1727444304008,-862.70793958,0.00030291,120]
[339308366,1727444304031,-910.99899986,0.00030291,120]
[339308367,1727444304054,-200.0,0.00030291,120]
[339308368,1727444304079,-851.59949452,0.00030291,30]
[339308369,1727444304104,-540.90012957,0.00030291,120]
[339308370,1727444304127,-956.43933329,0.00030291,120]
[339308371,1727444304153,-682.76233133,0.00030291,120]
[339308372,1727444304177,-414.02152512,0.00030291,120]
[339308373,1727444304201,-196.12911079,0.00030291,30]
[339308374,1727444304224,-1228.20005084,0.00030291,120]
[339308375,1727444304248,-1944.14196681,0.00030291,120]
[339308376,1727444304272,-1433.32241375,0.00030291,120]
[339308377,1727444304295,-256.89060246,0.00030291,30]
[339308378,1727444304320,-654.51073998,0.00030291,120]
[339308379,1727444304343,-1206.18836521,0.00030291,120]
[339308380,1727444304365,-1702.63392886,0.00030291,30]
[339308381,1727444304388,-289.88440668,0.00030291,31]
[339308382,1727444304410,-584.67189521,0.00030291,120]
[339308383,1727444304432,-1409.49922579,0.00030291,30]
[339308384,1727444304455,-268.59222114,0.00030291,120]
[339308385,1727444304477,-580.15548141,0.00030291,120]
[339308386,1727444304500,-354.19808076,0.00030291,120]
[339308387,1727444304522,-1102.24879568,0.00030291,30]
[339308388,1727444304544,-1074.05624247,0.00030291,30]
[339308389,1727444304567,-646.68397226,0.00030291,120]
[339308390,1727444304590,-756.0,0.00030291,120]
[339308391,1727444304612,-290.78865169,0.00030291,30]
[339308392,1727444304634,-2115.44059858,0.00030291,30]
[339308393,1727444304658,-1071.04463585,0.00030291,120]
[339308394,1727444304680,-1820.646965,0.00030291,120]
[339308395,1727444304703,-266.0,0.00030291,30]
[339308396,1727444304725,-935.51686703,0.00030291,120]
[339308397,1727444304747,-171.31920042,0.00030291,120]
[339308398,1727444304770,-1240.98958383,0.00030291,30]
[339308399,1727444304793,-201.39896932,0.00030291,120]
[339308400,1727444304825,-50000.0,0.00030291,30]
[339308401,1727444304854,-50000.0,0.00030291,31]
[339308402,1727444304880,-50000.0,0.00030291,32]
[339308403,1727444304907,-50000.0,0.00030291,33]
[339308404,1727444304934,-50000.0,0.00030291,34]
[339308405,1727444304962,-50000.0,0.00030291,35]
[339308406,1727444304987,-2664.18138935,0.00030291,120]
[339308407,1727444305011,-231.0,0.00030291,120]
[339308408,1727444305034,-1059.41208617,0.00030291,120]
[339308409,1727444305057,-923.93511601,0.00030291,120]
[339308410,1727444305084,-2519799.0,0.00030291,30]
[339308411,1727444305108,-200.23876734,0.00030291,30]
[339308412,1727444305132,-200.0,0.00030291,30]
[339308413,1727444305156,-200.0,0.00030291,30]
[339308414,1727444305180,-200.0,0.00030291,30]
[339308415,1727444305202,-200.0,0.00030291,30]
[339308416,1727444305226,-200.0,0.00030291,30]
[339308417,1727444305249,-200.0,0.00030291,30]
[339308418,1727444305272,-200.0,0.00030291,30]
[339308419,1727444305295,-200.0,0.00030291,30]
[339308420,1727444305319,-200.0,0.00030291,30]
[339308421,1727444305342,-200.0,0.00030291,30]
[339308422,1727444305365,-200.0,0.00030291,30]
[339308423,1727444305388,-200.0,0.00030291,30]
[339308424,1727444305411,-200.0,0.00030291,30]
[339308425,1727444305434,-200.0,0.00030291,30]
[339308426,1727444305456,-200.0,0.00030291,30]
[339308427,1727444305479,-200.0,0.00030291,30]
[339308428,1727444305501,-200.0,0.00030291,30]
[339308429,1727444305526,-200.0,0.00030291,30]
[339308430,1727444305550,-200.0,0.00030291,30]
[339308431,1727444305576,-200.0,0.00030291,30]
[339308432,1727444305598,-200.0,0.00030291,30]
[339308433,1727444305620,-200.0,0.00030291,30]
[339308434,1727444305643,-200.0,0.00030291,30]
[339308435,1727444305665,-200.0,0.00030291,30]
[339308436,1727444305688,-200.0,0.00030291,30]
[339308437,1727444305712,-200.0,0.00030291,30]
[339308438,1727444305907,-200.0,0.00030291,30]
[339308439,1727444305932,-200.0,0.00030291,30]
[339308440,1727444305955,-200.0,0.00030291,30]
[339308441,1727444305979,-200.0,0.00030291,30]
[339308442,1727444306002,-200.0,0.00030291,30]
[339308443,1727444306026,-200.0,0.00030291,30]
[339308444,1727444306050,-200.0,0.00030291,30]
[339308445,1727444306082,-200.0,0.00030291,30]
[339308446,1727444306107,-200.0,0.00030291,30]
[339308447,1727444306131,-200.0,0.00030291,30]
[339308448,1727444306154,-200.0,0.00030291,30]
[339308449,1727444306177,-200.0,0.00030291,30]
[339308450,1727444306199,-200.0,0.00030291,30]
[339308451,1727444306223,-200.0,0.00030291,30]
[339308452,1727444306246,-200.0,0.00030291,30]
[339308453,1727444306269,-200.0,0.00030291,30]
[339308454,1727444306292,-200.0,0.00030291,30]
[339308455,1727444306319,-200.0,0.00030291,30]
[339308456,1727444306342,-200.0,0.00030291,30]
[339308457,1727444306365,-200.0,0.00030291,30]
[339308458,1727444306388,-200.0,0.00030291,30]
[339308459,1727444306410,-200.0,0.00030291,30]
[339308460,1727444306433,-200.0,0.00030291,30]
[339308461,1727444306457,-5458.60716166,0.00030291,30]
[339308462,1727444306479,-1580.0,0.00030291,100]
[339308463,1727444306502,-1020.91766481,0.00030291,30]
[339308464,1727444306524,-248.28193885,0.00030291,60]
[339308465,1727444306546,-1027.96050569,0.00030291,30]
[339308466,1727444306574,-9883.72834864,0.00030291,30]
[339308467,1727444306597,-750.0,0.00030291,30]
[339308468,1727444306621,-20000.0,0.00030291,90]
[339308469,1727444306644,-20000.0,0.00030291,90]
[339308470,1727444306667,-20000.0,0.00030291,120]
[339308471,1727444306690,-166097.0,0.00030291,30]
[339308472,1727444306713,-100000.0,0.00030291,30]
[339308473,1727444306736,-2000.0,0.00030291,120]
[339308474,1727444306759,-484.12847979,0.00030291,30]
[339308475,1727444306782,-457.37172304,0.00030291,30]
[339308476,1727444306804,-7999.999998,0.00030291,120]